bitfinex-derivatives/quotes_SOLF0:USTF0_20260315
["timestamp","ask_amount","ask_price","bid_price","bid_amount"]
[1773618143238,22.85175066,92.206,92.16,9.764]
[1773618143448,22.61889325,92.259,92.161,3.60652441]
[1773618144546,8.09910605,92.26,92.161,3.60652441]
[1773618144547,22.61889325,92.247,92.173,9.762]
[1773618145639,22.61889325,92.242,92.173,9.762]
[1773618146036,22.61889325,92.242,92.179,9.762]
[1773618147237,22.61889325,92.239,92.147,3.52151532]
[1773618148141,22.61889325,92.226,92.147,3.52151532]
[1773618148446,22.61889325,92.274,92.147,3.52151532]
[1773618148648,22.61889325,92.269,92.161,3.27650458]
[1773618148849,22.61889325,92.248,92.161,3.27650458]
[1773618150943,8.09910605,92.27,92.161,3.27650458]
[1773618150944,22.61889325,92.237,92.161,3.27650458]
[1773618152246,22.61889325,92.222,92.161,3.27650458]
[1773618152850,161.43232915,92.376,92.161,3.27650458]
[1773618152851,9.755,92.243,92.161,3.27650458]
[1773618153152,22.61889325,92.242,92.161,3.27650458]
[1773618154051,22.61889325,92.24,92.161,3.27650458]
[1773618154752,22.61889325,92.229,92.165,9.763]
[1773618156050,22.61889325,92.227,92.126,4.88049906]
[1773618156254,22.61889325,92.227,92.141,15.18147324]
[1773618156852,22.61889325,92.227,92.175,9.762]
[1773618157947,22.61889325,92.254,92.185,15.21254278]
[1773618158855,22.61889325,92.254,92.194,9.76]
[1773618159350,22.61889325,92.253,92.184,9.761]
[1773618160657,22.61889325,92.241,92.184,9.761]
[1773618162760,22.61889325,92.241,92.193,9.76]
[1773618163655,22.61889325,92.241,92.183,9.761]
[1773618163855,22.61889325,92.241,92.165,14.96431064]
[1773618164255,8.09910605,92.27,92.177,9.762]
[1773618164256,22.61889325,92.239,92.177,9.762]
[1773618165657,22.61889325,92.239,92.151,34.16]
[1773618165658,22.61889325,92.223,92.154,9.96014893]
[1773618165860,22.61889325,92.223,92.15,15.50880261]
[1773618166157,22.61889325,92.223,92.16,15.51415217]
[1773618166352,22.61889325,92.223,92.164,25.46366822]
[1773618166752,22.61889325,92.223,92.167,9.763]
[1773618167359,22.61889325,92.223,92.167,19.72314893]
[1773618167559,22.61889325,92.221,92.167,19.72314893]
[1773618167757,22.61889325,92.221,92.178,9.762]
[1773618168560,22.61889325,92.221,92.171,9.96014893]
[1773618169463,22.61889325,92.221,92.174,9.96014893]
[1773618170366,22.61889325,92.221,92.164,15.50351929]
[1773618170367,22.61889325,92.221,92.175,9.96014893]
[1773618171270,22.61889325,92.221,92.176,9.96014893]
[1773618171470,22.61889325,92.238,92.193,9.76]
[1773618171667,22.61889325,92.238,92.188,15.92702193]
[1773618171867,22.61889325,92.279,92.197,9.96014893]
[1773618172168,22.94721848,92.263,92.205,9.96014893]
[1773618172365,22.94721848,92.263,92.214,9.96014893]
[1773618172569,22.94721848,92.263,92.222,9.96014893]
[1773618173070,22.94721848,92.263,92.221,9.96014893]
[1773618173271,22.94721848,92.263,92.22,9.96014893]
[1773618173667,22.94721848,92.263,92.227,9.757]
[1773618175565,22.94721848,92.263,92.218,9.96014893]
[1773618175778,22.94721848,92.263,92.217,9.96014893]
[1773618175969,22.94721848,92.263,92.213,9.96014893]
[1773618176167,19.493,92.324,92.225,9.757]
[1773618176168,20.93053261,92.281,92.225,9.757]
[1773618176771,18.99910605,92.32,92.215,9.96014893]
[1773618176772,20.93053261,92.278,92.215,9.96014893]
[1773618176968,20.93053261,92.278,92.208,9.96014893]
[1773618177174,20.93053261,92.255,92.208,9.96014893]
[1773618177380,20.93053261,92.255,92.205,9.96014893]
[1773618178178,20.93053261,92.255,92.207,9.96014893]
[1773618178774,20.93053261,92.255,92.209,9.758]
[1773618178975,20.93053261,92.255,92.211,9.96014893]
[1773618179476,20.93053261,92.255,92.213,9.96014893]
[1773618180379,20.93053261,92.255,92.212,9.96014893]
[1773618180678,20.93053261,92.255,92.211,9.96014893]
[1773618181076,20.93053261,92.25,92.194,9.76]
[1773618182170,20.93053261,92.25,92.203,9.759]
[1773618185773,20.93053261,92.25,92.211,9.758]
[1773618185977,34.14,92.298,92.19,55.15899471]
[1773618185978,20.93053261,92.266,92.206,21.01899471]
[1773618186178,20.93053261,92.266,92.211,21.01899471]
[1773618186378,20.93053261,92.266,92.215,21.01899471]
[1773618186576,20.93053261,92.266,92.215,34.18359094]
[1773618186882,20.93053261,92.266,92.216,21.01899471]
[1773618187580,20.93053261,92.266,92.227,9.757]
[1773618187773,20.93053261,92.266,92.219,13.16459623]
[1773618187980,20.93053261,92.266,92.207,13.16459623]
[1773618188179,20.93053261,92.266,92.206,13.16459623]
[1773618188381,20.93053261,92.266,92.207,13.16459623]
[1773618188883,20.93053261,92.26,92.208,9.759]
[1773618190082,20.93053261,92.257,92.208,9.759]
[1773618191585,20.93053261,92.255,92.208,9.759]
[1773618194685,20.93053261,92.255,92.203,29.16459623]
[1773618195281,20.93053261,92.255,92.197,21.01899471]
[1773618195580,20.93053261,92.255,92.203,13.16459623]
[1773618195782,20.93053261,92.255,92.199,13.16459623]
[1773618195987,20.93053261,92.255,92.194,22.92459623]
[1773618196181,20.93053261,92.255,92.195,13.16459623]
[1773618196484,20.93053261,92.245,92.194,13.16459623]
[1773618196687,20.93053261,92.245,92.182,13.16459623]
[1773618196889,20.93053261,92.245,92.181,13.16459623]
[1773618197188,20.93053261,92.226,92.153,34.14]
[1773618197487,20.93053261,92.226,92.139,19.74689435]
[1773618197680,13.26263584,92.273,92.132,55.15899471]
[1773618197681,20.93053261,92.205,92.135,19.74689435]
[1773618197879,20.93053261,92.205,92.124,34.14]
[1773618198081,20.93053261,92.182,92.124,43.907]
[1773618198286,20.93053261,92.182,92.125,21.01899471]
[1773618199690,30.69053261,92.193,92.133,9.766]
[1773618199990,20.93053261,92.192,92.133,9.766]
[1773618200886,9.761,92.19,92.133,9.766]
[1773618201092,34.14,92.219,92.125,21.01899471]
[1773618201093,20.93053261,92.189,92.125,21.01899471]
[1773618202600,22.78108586,92.186,92.125,21.01899471]
[1773618203592,22.78108586,92.184,92.125,21.01899471]
[1773618204087,9.761,92.182,92.125,21.01899471]
[1773618204284,22.78108586,92.181,92.125,21.01899471]
[1773618204490,22.78108586,92.181,92.113,43.929]
[1773618204685,22.78108586,92.181,92.113,9.769]
[1773618205589,22.78108586,92.176,92.113,9.769]
[1773618206390,9.762,92.174,92.113,9.769]
[1773618206688,22.78108586,92.173,92.113,9.769]
[1773618207088,22.78108586,92.171,92.111,34.16]
[1773618207695,22.78108586,92.171,92.102,9.77]
[1773618207891,22.78108586,92.159,92.097,34.16]
[1773618208997,22.78108586,92.159,92.077,20.99454252]
[1773618209597,22.78108586,92.146,92.082,9.772]
[1773618210493,22.78108586,92.143,92.082,9.772]
[1773618211303,22.78108586,92.179,92.086,20.99454252]
[1773618211499,22.78108586,92.179,92.091,20.99454252]
[1773618211798,22.78108586,92.179,92.111,20.99454252]
[1773618212103,22.78108586,92.179,92.129,20.99454252]
[1773618213293,22.78108586,92.177,92.117,9.768]
[1773618214096,22.78108586,92.177,92.112,55.15454252]
[1773618214097,22.78108586,92.172,92.112,55.15454252]
[1773618214801,9.764,92.162,92.112,55.15454252]
[1773618216606,19.513,92.229,92.112,55.15454252]
[1773618216607,22.78108586,92.209,92.121,20.99454252]
[1773618217602,9.76,92.195,92.138,9.766]
[1773618219208,9.759,92.204,92.139,20.99454252]
[1773618219603,22.78108586,92.203,92.141,20.99454252]
[1773618219803,22.78108586,92.203,92.14,8.05757778]
[1773618219804,22.78108586,92.213,92.152,20.99454252]
[1773618220406,9.756,92.234,92.176,9.762]
[1773618220606,22.78108586,92.237,92.172,20.99454252]
[1773618222601,22.78108586,92.237,92.175,20.99454252]
[1773618223304,22.78108586,92.237,92.178,20.99454252]
[1773618223502,9.754,92.255,92.181,20.99454252]
[1773618223810,22.78108586,92.254,92.203,20.99454252]
[1773618224010,22.78108586,92.281,92.203,20.99454252]
[1773618225216,22.78108586,92.267,92.209,9.758]
[1773618225913,22.78108586,92.265,92.203,20.99454252]
[1773618226309,14.76287748,92.282,92.188,9.761]
[1773618226310,22.78108586,92.251,92.188,9.761]
[1773618227514,9.755,92.247,92.188,9.761]
[1773618227816,32.53608586,92.247,92.188,9.761]
[1773618228218,22.78108586,92.242,92.181,20.99454252]
[1773618228420,22.78108586,92.242,92.168,20.99454252]
[1773618228920,22.78108586,92.229,92.17,20.99454252]
[1773618229817,22.78108586,92.227,92.17,20.99454252]
[1773618230710,22.78108586,92.225,92.153,20.99454252]
[1773618231521,9.758,92.216,92.153,20.99454252]
[1773618231725,22.78108586,92.215,92.153,20.99454252]
[1773618232526,9.758,92.212,92.153,20.99454252]
[1773618232731,21.19169652,92.231,92.155,22.68821478]
[1773618233224,21.19169652,92.231,92.15,8.05757778]
[1773618233225,21.19169652,92.231,92.166,21.04258498]
[1773618233822,9.757,92.224,92.167,9.763]
[1773618235132,21.19169652,92.231,92.172,9.762]
[1773618235727,32.20812684,92.22,92.168,21.04258498]
[1773618235928,22.45112684,92.22,92.15,29.10016276]
[1773618236322,22.45112684,92.22,92.151,21.04258498]
[1773618236827,9.758,92.211,92.153,9.764]
[1773618237028,9.758,92.211,92.125,19.74689435]
[1773618237029,22.45112684,92.21,92.136,34.16]
[1773618237228,22.45112684,92.21,92.137,21.04258498]
[1773618239232,22.45112684,92.227,92.156,21.04258498]
[1773618240633,22.45112684,92.227,92.171,9.762]
[1773618241635,22.45112684,92.225,92.171,9.762]
[1773618242835,22.45112684,92.246,92.174,21.04258498]
[1773618243041,22.45112684,92.281,92.191,21.04258498]
[1773618243234,22.45112684,92.281,92.195,21.04258498]
[1773618244530,9.753,92.264,92.202,9.759]
[1773618244735,9.753,92.264,92.203,21.04258498]
[1773618244935,37.21400432,92.282,92.209,10.06240594]
[1773618245139,37.21400432,92.282,92.228,21.04258498]
[1773618245335,37.21400432,92.282,92.21,8.06695397]
[1773618245336,14.76287748,92.282,92.231,21.04258498]
[1773618245532,32.20212684,92.279,92.215,9.758]
[1773618245738,22.45112684,92.278,92.198,21.04258498]
[1773618246032,9.753,92.264,92.198,21.04258498]
[1773618246234,14.76287748,92.282,92.198,21.04258498]
[1773618246235,22.45112684,92.263,92.198,21.04258498]
[1773618246644,22.45112684,92.244,92.181,34.16]
[1773618247140,22.45112684,92.244,92.182,21.04258498]
[1773618247642,22.45112684,92.244,92.183,9.761]
[1773618250843,22.45112684,92.244,92.172,34.16]
[1773618250844,22.45112684,92.238,92.172,34.16]
[1773618252640,9.757,92.226,92.172,34.16]
[1773618254641,32.20812684,92.226,92.172,34.16]
[1773618255052,22.45112684,92.225,92.172,34.16]
[1773618255347,22.45112684,92.225,92.172,44.22240594]
[1773618255952,22.45112684,92.241,92.173,21.04258498]
[1773618256348,22.45112684,92.241,92.177,21.04258498]
[1773618256650,22.45112684,92.238,92.177,21.04258498]
[1773618257148,22.45112684,92.238,92.181,10.06240594]
[1773618257547,9.756,92.236,92.181,10.06240594]
[1773618257748,9.756,92.236,92.182,30.80358498]
[1773618258144,9.756,92.236,92.182,40.86599092]
[1773618259252,9.756,92.236,92.184,10.06240594]
[1773618259749,9.756,92.233,92.184,10.06240594]
[1773618259950,22.45112684,92.232,92.178,10.06240594]
[1773618260149,22.45112684,92.232,92.169,34.16]
[1773618260150,22.45112684,92.232,92.176,10.06240594]
[1773618260351,22.45112684,92.232,92.175,10.06240594]
[1773618261050,22.45112684,92.232,92.176,10.06240594]
[1773618261249,22.45112684,92.232,92.17,10.06240594]
[1773618261550,9.757,92.22,92.17,10.06240594]
[1773618261750,22.45112684,92.232,92.171,10.06240594]
[1773618262056,22.45112684,92.232,92.175,10.06240594]
[1773618262245,22.45112684,92.232,92.176,10.06240594]
[1773618262555,23.21329468,92.229,92.176,10.06240594]
[1773618262951,23.21329468,92.259,92.183,23.41127167]
[1773618263151,9.755,92.245,92.193,23.41127167]
[1773618263353,9.755,92.245,92.197,33.47367761]
[1773618264057,9.755,92.245,92.201,10.06240594]
[1773618264257,9.755,92.245,92.202,10.06240594]
[1773618264458,9.755,92.245,92.2,10.06240594]
[1773618265962,9.755,92.245,92.206,10.06240594]
[1773618266162,32.96829468,92.245,92.206,10.06240594]
[1773618267261,8.06695397,92.28,92.206,10.06240594]
[1773618267262,9.754,92.254,92.206,10.06240594]
[1773618267560,23.21329468,92.253,92.206,10.06240594]
[1773618268463,23.21329468,92.253,92.205,10.06240594]
[1773618268658,9.754,92.248,92.205,10.06240594]
[1773618269260,23.21329468,92.244,92.204,10.06240594]
[1773618269461,23.21329468,92.244,92.205,10.06240594]
[1773618271358,23.21329468,92.241,92.197,10.06240594]
[1773618271662,23.21329468,92.241,92.191,10.06240594]
[1773618271862,23.21329468,92.241,92.19,10.06240594]
[1773618272562,23.21329468,92.232,92.19,10.06240594]
[1773618272756,23.21329468,92.229,92.19,10.06240594]
[1773618273659,23.21329468,92.219,92.157,13.37191216]
[1773618273861,23.21329468,92.238,92.18,3.38716063]
[1773618274557,23.21329468,92.238,92.134,34.14]
[1773618274558,23.21329468,92.238,92.19,26.7984323]
[1773618274755,23.21329468,92.238,92.19,23.41127167]
[1773618274955,23.21329468,92.279,92.19,23.41127167]
[1773618275162,23.21329468,92.279,92.191,23.41127167]
[1773618275466,23.21329468,92.279,92.193,23.41127167]
[1773618275759,9.753,92.257,92.202,23.41127167]
[1773618276756,23.21329468,92.261,92.202,23.41127167]
[1773618277566,23.21329468,92.261,92.204,9.759]
[1773618277766,9.753,92.259,92.204,9.759]
[1773618279973,23.21329468,92.256,92.202,23.41127167]
[1773618281373,23.21329468,92.271,92.202,23.41127167]
[1773618282271,32.96529468,92.27,92.212,9.758]
[1773618282471,23.21329468,92.269,92.213,23.41127167]
[1773618283670,9.752,92.267,92.213,23.41127167]
[1773618286774,9.753,92.264,92.213,23.41127167]
[1773618287073,23.21329468,92.263,92.213,23.41127167]
[1773618287377,23.21329468,92.263,92.214,16.0]
[1773618289475,23.21329468,92.263,92.215,23.41127167]
[1773618290072,23.21329468,92.261,92.215,23.41127167]
[1773618291978,9.752,92.27,92.218,23.41127167]
[1773618292676,22.8402619,92.265,92.218,23.41127167]
[1773618292976,22.8402619,92.265,92.209,13.37191216]
[1773618293180,22.8402619,92.265,92.209,16.0]
[1773618293983,23.1536736,92.256,92.205,13.37191216]
[1773618294178,23.1536736,92.256,92.203,22.63558637]
[1773618295581,23.1536736,92.252,92.203,22.63558637]
[1773618295979,23.1536736,92.252,92.187,34.14]
[1773618295980,23.1536736,92.268,92.222,13.37191216]
[1773618296181,23.1536736,92.268,92.213,21.46064606]
[1773618296682,23.1536736,92.268,92.216,21.46064606]
[1773618296984,23.1536736,92.268,92.221,21.46064606]
[1773618298486,23.1536736,92.268,92.213,23.12991216]
[1773618298487,23.1536736,92.266,92.208,13.37191216]
[1773618298686,23.1536736,92.266,92.206,21.46064606]
[1773618298879,9.753,92.265,92.213,9.758]
[1773618299180,9.753,92.265,92.214,21.46064606]
[1773618299783,14.76287748,92.282,92.231,21.46064606]
[1773618299983,37.91655108,92.282,92.231,21.46064606]
[1773618300180,23.1536736,92.279,92.222,13.37191216]
[1773618300780,23.1536736,92.266,92.216,21.46064606]
[1773618301379,23.1536736,92.279,92.221,21.46064606]
[1773618301587,14.76287748,92.282,92.231,21.46064606]
[1773618302686,14.76287748,92.282,92.25,3.38418643]
[1773618302878,23.1536736,92.309,92.253,21.46064606]
[1773618303186,3.38418643,92.29,92.24,21.46064606]
[1773618304988,23.1536736,92.288,92.232,9.756]
[1773618305282,23.1536736,92.307,92.243,21.46064606]
[1773618305491,23.1536736,92.307,92.16,8.05415812]
[1773618305492,23.1536736,92.307,92.225,21.46064606]
[1773618305790,9.75,92.294,92.236,21.46064606]
[1773618305989,23.1536736,92.307,92.236,21.46064606]
[1773618306387,23.1536736,92.307,92.255,9.754]
[1773618306593,23.1536736,92.307,92.222,34.14]
[1773618306594,23.1536736,92.307,92.231,21.46064606]
[1773618306892,23.1536736,92.296,92.231,21.46064606]
[1773618308386,23.1536736,92.296,92.232,21.46064606]
[1773618309290,23.1536736,92.296,92.234,21.46064606]
[1773618309590,23.1536736,92.313,92.234,21.46064606]
[1773618309792,23.1536736,92.33,92.269,21.46064606]
[1773618311191,9.747,92.315,92.269,21.46064606]
[1773618311392,23.1536736,92.33,92.269,21.46064606]
[1773618311784,23.1536736,92.328,92.271,21.46064606]
[1773618312490,23.1536736,92.325,92.234,21.46064606]
[1773618312787,23.1536736,92.319,92.225,21.46064606]
[1773618312985,23.1536736,92.288,92.225,21.46064606]
[1773618313184,23.1536736,92.319,92.225,21.46064606]
[1773618313490,9.75,92.292,92.225,31.21764606]
[1773618313695,9.75,92.292,92.226,21.46064606]
[1773618314196,23.1536736,92.359,92.254,21.46064606]
[1773618314490,23.1536736,92.359,92.256,21.46064606]
[1773618314696,23.1536736,92.328,92.256,21.46064606]
[1773618315190,23.1536736,92.301,92.238,21.46064606]
[1773618315388,23.1536736,92.352,92.251,21.46064606]
[1773618315592,23.1536736,92.352,92.253,21.46064606]
[1773618315794,23.1536736,92.352,92.25,8.05415812]
[1773618315795,9.746,92.33,92.268,31.21264606]
[1773618316095,23.1536736,92.332,92.269,21.46064606]
[1773618316296,23.1536736,92.372,92.271,21.46064606]
[1773618316991,23.1536736,92.372,92.27,8.05415812]
[1773618316992,9.745,92.341,92.281,21.46064606]
[1773618317397,23.1536736,92.354,92.281,21.46064606]
[1773618317697,9.744,92.342,92.283,21.46064606]
[1773618318487,9.743,92.352,92.283,21.46064606]
[1773618318690,23.1536736,92.351,92.283,21.46064606]
[1773618319088,9.744,92.347,92.283,21.46064606]
[1773618320394,23.1536736,92.337,92.271,21.46064606]
[1773618321192,23.1536736,92.331,92.271,21.46064606]
[1773618322100,9.745,92.34,92.273,21.40871781]
[1773618322798,21.92831102,92.351,92.256,13.37191216]
[1773618323000,21.92831102,92.413,92.311,21.40871781]
[1773618323194,13.26263584,92.457,92.351,21.40871781]
[1773618323195,21.92831102,92.449,92.351,21.40871781]
[1773618323391,21.92831102,92.449,92.305,13.37191216]
[1773618323392,21.92831102,92.436,92.354,21.40871781]
[1773618323899,21.92831102,92.436,92.367,21.40871781]
[1773618324894,21.92831102,92.433,92.367,21.40871781]
[1773618325099,21.92831102,92.433,92.332,21.40871781]
[1773618325295,21.92831102,92.429,92.332,21.40871781]
[1773618325696,9.737,92.415,92.335,21.40871781]
[1773618325997,21.92831102,92.414,92.335,21.40871781]
[1773618326199,9.739,92.398,92.335,21.40871781]
[1773618326597,9.739,92.398,92.279,19.74689435]
[1773618326598,21.92831102,92.397,92.289,13.37191216]
[1773618326794,21.92831102,92.362,92.291,21.40871781]
[1773618327200,21.92831102,92.361,92.293,21.40871781]
[1773618328407,21.92831102,92.361,92.271,34.12]
[1773618328408,21.92831102,92.359,92.295,21.40871781]
[1773618328607,21.92831102,92.359,92.272,21.40871781]
[1773618329407,21.92831102,92.34,92.274,21.40871781]
[1773618330507,9.745,92.338,92.274,21.40871781]
[1773618330708,21.92831102,92.337,92.254,21.40871781]
[1773618330904,9.746,92.327,92.254,21.40871781]
[1773618331407,21.92831102,92.337,92.254,21.40871781]
[1773618331596,21.92831102,92.321,92.254,21.40871781]
[1773618332808,21.92831102,92.344,92.257,21.40871781]
[1773618333498,34.12,92.375,92.2,19.74689435]
[1773618333499,21.92831102,92.308,92.231,21.40871781]
[1773618333904,21.92831102,92.308,92.232,21.40871781]
[1773618334100,21.92831102,92.329,92.232,21.40871781]
[1773618334604,21.92831102,92.302,92.232,21.40871781]
[1773618335209,9.749,92.296,92.232,21.40871781]
[1773618335408,21.92831102,92.295,92.232,21.40871781]
[1773618335801,9.75,92.292,92.216,9.758]
[1773618336000,21.92831102,92.291,92.216,9.758]
[1773618336200,21.92831102,92.291,92.22,21.40871781]
[1773618336912,21.92831102,92.288,92.22,21.40871781]
[1773618337599,21.92831102,92.307,92.22,21.40871781]
[1773618337801,21.92831102,92.307,92.222,21.40871781]
[1773618338004,21.92831102,92.307,92.226,21.40871781]
[1773618338205,21.92831102,92.307,92.227,21.40871781]
[1773618338611,21.92831102,92.307,92.239,21.40871781]
[1773618339517,31.67431102,92.326,92.244,21.40871781]
[1773618340208,31.67531102,92.321,92.244,21.40871781]
[1773618340410,21.92831102,92.32,92.244,21.40871781]
[1773618340805,21.92831102,92.316,92.245,21.40871781]
[1773618341812,9.748,92.307,92.245,21.40871781]
[1773618344113,21.92831102,92.316,92.245,21.40871781]
[1773618344413,21.92831102,92.316,92.251,21.40871781]
[1773618344609,9.746,92.33,92.251,21.40871781]
[1773618344812,21.92831102,92.329,92.251,21.40871781]
[1773618345012,8.05415812,92.32,92.224,21.40871781]
[1773618345206,19.49,92.341,92.224,21.40871781]
[1773618345207,21.92831102,92.299,92.224,21.40871781]
[1773618346315,21.92831102,92.299,92.208,10.01672019]
[1773618346512,8.05415812,92.3,92.206,21.40871781]
[1773618346513,21.92831102,92.271,92.206,21.40871781]
[1773618347517,9.753,92.265,92.206,21.40871781]
[1773618348518,21.92831102,92.264,92.206,21.40871781]
[1773618348713,9.753,92.262,92.206,21.40871781]
[1773618348913,21.92831102,92.262,92.198,9.76]
[1773618350518,9.754,92.254,92.198,9.76]
[1773618350916,21.92831102,92.253,92.189,21.40871781]
[1773618351419,9.754,92.249,92.189,21.40871781]
[1773618352319,21.92831102,92.253,92.191,21.41213205]
[1773618353211,21.92831102,92.253,92.192,16.0]
[1773618353615,21.92831102,92.253,92.196,9.76]
[1773618354920,9.754,92.251,92.196,9.76]
[1773618355222,8.05415812,92.28,92.192,16.0]
[1773618355223,21.91512216,92.25,92.192,16.0]
[1773618356323,21.91512216,92.27,92.195,23.13815247]
[1773618356618,21.91512216,92.309,92.221,23.13815247]
[1773618356822,21.91512216,92.331,92.241,23.13815247]
[1773618357022,21.91512216,92.331,92.259,23.13815247]
[1773618359524,9.748,92.312,92.259,23.13815247]
[1773618359725,21.91512216,92.331,92.259,23.13815247]
[1773618360728,9.747,92.314,92.259,23.13815247]
[1773618360929,21.91512216,92.313,92.259,23.13815247]
[1773618361126,21.91512216,92.313,92.221,23.13815247]
[1773618361532,21.91512216,92.286,92.221,23.13815247]
[1773618361930,9.751,92.28,92.221,23.13815247]
[1773618362831,9.751,92.28,92.222,23.13815247]
[1773618363333,31.66512216,92.289,92.226,23.13815247]
[1773618364531,31.66512216,92.289,92.228,9.756]
[1773618364732,31.66512216,92.289,92.229,23.13815247]
[1773618366234,9.749,92.298,92.231,23.13815247]
[1773618366833,21.91512216,92.295,92.236,9.756]
[1773618367033,21.91512216,92.295,92.237,16.0]
[1773618367335,21.91512216,92.29,92.237,16.0]
[1773618367529,21.91512216,92.29,92.189,23.13815247]
[1773618368228,21.91512216,92.265,92.19,23.13815247]
[1773618368733,9.755,92.243,92.19,23.13815247]
[1773618368926,21.91512216,92.265,92.19,23.13815247]
[1773618370236,9.754,92.256,92.19,32.89815247]
[1773618370529,21.91512216,92.265,92.19,23.13815247]
[1773618371536,21.91512216,92.265,92.2,23.13815247]
[1773618372335,21.91512216,92.299,92.2,23.13815247]
[1773618372740,21.91512216,92.299,92.21,8.04904315]
[1773618372931,21.91512216,92.299,92.211,23.13815247]
[1773618373139,21.91512216,92.329,92.231,23.13815247]
[1773618374234,21.91512216,92.329,92.268,9.752]
[1773618374839,21.91512216,92.329,92.27,9.752]
[1773618375232,21.91512216,92.329,92.231,23.13815247]
[1773618375438,21.91512216,92.325,92.257,9.753]
[1773618376542,21.91512216,92.325,92.265,9.753]
[1773618377544,9.746,92.326,92.266,23.13815247]
[1773618377744,9.745,92.336,92.267,9.752]
[1773618378246,21.91512216,92.335,92.267,9.752]
[1773618378438,9.746,92.331,92.267,9.752]
[1773618378642,31.66112216,92.331,92.267,9.752]
[1773618378839,21.91512216,92.319,92.257,9.753]
[1773618379143,21.91512216,92.319,92.222,34.14]
[1773618379144,21.91512216,92.319,92.258,23.13815247]
[1773618379643,21.91512216,92.349,92.258,23.13815247]
[1773618380543,9.746,92.33,92.265,23.13815247]
[1773618381544,9.746,92.33,92.267,9.752]
[1773618381744,9.746,92.326,92.268,23.13815247]
[1773618381942,23.03525785,92.325,92.23,8.04904315]
[1773618382245,23.03525785,92.325,92.231,23.10459682]
[1773618382646,23.03525785,92.325,92.256,23.10459682]
[1773618383645,23.03525785,92.325,92.267,9.752]
[1773618384045,23.03525785,92.324,92.257,23.10459682]
[1773618384745,23.03525785,92.31,92.245,9.755]
[1773618386341,23.03525785,92.307,92.239,23.10459682]
[1773618387047,9.749,92.303,92.241,23.10459682]
[1773618387746,9.749,92.303,92.245,9.755]
[1773618388546,9.749,92.303,92.245,32.85959682]
[1773618388850,23.03525785,92.307,92.245,32.85959682]
[1773618389951,23.03525785,92.307,92.249,9.754]
[1773618390150,23.03525785,92.307,92.25,23.10459682]
[1773618391451,9.749,92.296,92.25,23.10459682]
[1773618391652,23.03525785,92.307,92.235,23.10459682]
[1773618392552,9.748,92.305,92.242,9.755]
[1773618393053,23.03525785,92.304,92.242,32.85959682]
[1773618393254,23.03525785,92.302,92.242,32.85959682]
[1773618393552,23.03525785,92.302,92.242,23.10459682]
[1773618394157,23.03525785,92.302,92.23,9.756]
[1773618394354,23.03525785,92.291,92.23,9.756]
[1773618394850,23.03525785,92.291,92.23,32.86059682]
[1773618395645,23.03525785,92.289,92.231,23.10459682]
[1773618396553,9.75,92.286,92.231,23.10459682]
[1773618396955,9.75,92.286,92.208,34.12]
[1773618396956,23.03525785,92.329,92.235,23.10459682]
[1773618398156,23.03525785,92.304,92.235,23.10459682]
[1773618398657,9.749,92.294,92.238,9.755]
[1773618398855,9.749,92.294,92.239,23.10459682]
[1773618399564,32.78325785,92.304,92.242,9.755]
[1773618399757,23.03525785,92.303,92.242,9.755]
[1773618399957,23.03525785,92.303,92.239,23.10459682]
[1773618400661,9.75,92.288,92.239,23.10459682]
[1773618402057,23.03525785,92.303,92.239,23.10459682]
[1773618402259,9.749,92.297,92.241,23.10459682]
[1773618402761,23.03525785,92.296,92.241,23.10459682]
[1773618403664,23.03525785,92.296,92.244,9.755]
[1773618403963,23.03525785,92.294,92.241,23.10459682]
[1773618404560,23.03525785,92.294,92.235,9.756]
[1773618405661,23.03525785,92.291,92.235,9.756]
[1773618406464,23.03525785,92.291,92.236,23.10459682]
[1773618406762,9.75,92.29,92.236,23.10459682]
[1773618407958,23.03525785,92.291,92.208,34.12]
[1773618407959,23.03525785,92.291,92.241,23.10459682]
[1773618409462,32.78525785,92.29,92.241,23.10459682]
[1773618409662,23.03525785,92.289,92.241,23.10459682]
[1773618410064,23.03525785,92.289,92.211,23.10459682]
[1773618410365,23.03525785,92.287,92.234,9.756]
[1773618411565,9.75,92.285,92.226,9.757]
[1773618411768,23.03525785,92.284,92.226,9.757]
[1773618412467,23.03525785,92.284,92.227,21.72925275]
[1773618412764,9.751,92.279,92.227,21.72925275]
[1773618413762,31.88390008,92.279,92.227,21.72925275]
[1773618413968,22.13290008,92.275,92.217,9.758]